fUSD/lending_fUSD_20251226
["ID","MTS","AMOUNT","RATE_DAILY","PERIOD"]
[399860036,1766759438934,-1500.0,0.00016768,2]
[399860037,1766759438944,-946.0,0.00016819,2]
[399860038,1766759438955,-946.0,0.0001688,2]
[399860039,1766759438965,-205.98026612,0.000169,2]
[399860040,1766759438975,-184.89745642,0.000169,2]
[399860041,1766759438985,-946.0,0.00016908,2]
[399860042,1766759438995,-933.99,0.0001691,2]
[399860043,1766759439006,-158.75,0.00016973,2]
[399860044,1766759439016,-500.0,0.00016973,2]
[399860045,1766759439026,-511.82107275,0.00016973,2]
[399860046,1766759439038,-163.47849716,0.00016973,2]
[399860047,1766759439048,-500.0,0.00016973,2]
[399860048,1766759439058,-946.0,0.00016985,2]
[399860049,1766759439068,-126443.18760255,0.00017,2]
[399860050,1766759439082,-1350.49348845,0.00017,2]
[399860051,1766759439094,-580.53596721,0.00017,2]
[399860052,1766759439111,-12477.0,0.00017,2]
[399860053,1766759439123,-49402.07942462,0.00017,2]
[399860054,1766759439136,-2256.70555665,0.00017,2]
[399860055,1766759439148,-2106.82726274,0.00017,2]
[399860060,1766759439922,-22550.57086599,0.00015093,2]
[399860061,1766759439932,-3737845.72599299,0.00017,2]
[399860062,1766759440160,-375.16859773,0.00017,2]
[399860063,1766759440173,-838.48,0.00017,2]
[399860064,1766759440222,-6211.97940829,0.00017,2]
[399860065,1766759440339,-87841.18835138,0.00017,2]
[399860066,1766759440352,-488.3178014,0.00017,2]
[399860067,1766759440363,-476.52298091,0.00017,2]
[399860068,1766759440376,-45939.90408802,0.00017,2]
[399860069,1766759440389,-1542.26069336,0.00017,2]
[399860080,1766759445707,-8457.29233202,0.00015394,2]
[399860154,1766760187322,157.28,7.437e-05,2]
[399860155,1766760187379,157.28,8.499e-05,2]
[399860156,1766760187511,157.28,9.561e-05,2]
[399860157,1766760187783,157.28,0.00010624,2]
[399860158,1766760187987,157.28,0.00011686,2]
[399860172,1766760531667,6238.38,0.00030137,120]
[399860186,1766760631921,-157.28,0.00012748,2]
[399860187,1766760631931,-300.0,0.00013689,2]
[399860189,1766760631942,-152.373476,0.00013689,2]
[399860191,1766760631955,-147.626524,0.00013689,2]
[399860193,1766760631965,-975.41393511,0.00013689,2]
[399860195,1766760631989,-224.58606489,0.00013689,2]
[399860196,1766760631998,-4177.58129086,0.0001369,2]
[399860197,1766760632022,-4119.73968487,0.0001369,2]
[399860198,1766760632040,-3524.4,0.0001369,2]
[399860199,1766760632052,-1434.21810536,0.0001369,2]
[399860200,1766760632068,-319.95494331,0.0001369,2]
[399860201,1766760632078,-4253.24505669,0.0001377,2]
[399860202,1766760632090,-1498.41572974,0.0001377,2]
[399860203,1766760632183,-1006.15921357,0.0001377,2]
[399860204,1766760632194,-6757.82,0.0001377,2]
[399860205,1766760632205,-778.33,0.00013779,2]
[399860206,1766760632215,-500.0,0.00013779,2]
[399860207,1766760632224,-227.33547386,0.00013779,2]
[399860208,1766760632234,-500.0,0.00013779,2]
[399860209,1766760632244,-500.0,0.00013779,2]
[399860210,1766760632254,-500.0,0.00013779,2]
[399860211,1766760632264,-500.0,0.00013779,2]
[399860212,1766760632273,-500.0,0.00013779,2]
[399860213,1766760632285,-500.0,0.00013779,2]
[399860214,1766760632296,-500.0,0.00013779,2]
[399860215,1766760632306,-233.98855111,0.00013779,2]
[399860216,1766760632317,-635.52316721,0.00013779,2]
[399860217,1766760632328,-500.0,0.00013779,2]
[399860218,1766760632337,-500.0,0.00013779,2]
[399860219,1766760632347,-500.0,0.00013779,2]
[399860220,1766760632358,-500.0,0.00013779,2]
[399860221,1766760632368,-500.0,0.00013779,2]
[399860222,1766760632378,-500.0,0.00013779,2]
[399860223,1766760632388,-500.0,0.00013779,2]
[399860224,1766760632399,-500.0,0.00013779,2]
[399860225,1766760632409,-500.0,0.00013779,2]
[399860226,1766760632419,-500.0,0.00013779,2]
[399860227,1766760632429,-500.0,0.00013779,2]
[399860228,1766760632439,-500.0,0.00013779,2]
[399860229,1766760632449,-500.0,0.00013779,2]
[399860230,1766760632459,-500.0,0.00013779,2]
[399860231,1766760632469,-500.0,0.00013779,2]
[399860232,1766760632478,-500.0,0.00013779,2]
[399860233,1766760632488,-500.0,0.00013779,2]
[399860234,1766760632498,-374.59801277,0.00013779,2]
[399860235,1766760632508,-500.0,0.00013779,2]
[399860236,1766760632517,-500.0,0.00013779,2]
[399860237,1766760632527,-500.0,0.00013779,2]
[399860238,1766760632539,-500.0,0.00013779,2]
[399860239,1766760632549,-500.0,0.00013779,2]
[399860240,1766760632558,-500.0,0.00013779,2]
[399860241,1766760632568,-500.0,0.00013779,2]
[399860242,1766760632577,-500.0,0.00013779,2]
[399860243,1766760632587,-500.0,0.00013779,2]
[399860244,1766760632597,-500.0,0.00013779,2]
[399860245,1766760632607,-500.0,0.00013779,2]
[399860246,1766760632617,-500.0,0.00013779,2]
[399860247,1766760632626,-500.0,0.00013779,2]
[399860248,1766760632636,-500.0,0.00013779,2]
[399860249,1766760632646,-500.0,0.00013779,2]
[399860250,1766760632656,-500.0,0.00013779,2]
[399860251,1766760632666,-500.0,0.00013779,2]
[399860252,1766760632677,-500.0,0.00013779,2]
[399860253,1766760632687,-200.0,0.00013779,2]
[399860254,1766760632697,-500.0,0.00013779,2]
[399860255,1766760632707,-9.18889325,0.00013779,2]
[399860256,1766760632720,-227.37695884,0.00013779,2]
[399860257,1766760632730,-149.93673203,0.00013779,2]
[399860258,1766760632742,-350.06326797,0.00013779,2]
[399860259,1766760632753,-75.4530893,0.00013779,2]
[399860260,1766760632765,-424.5469107,0.00013779,2]
[399860261,1766760632776,-500.0,0.00013779,2]
[399860262,1766760632790,-500.0,0.00013779,2]
[399860263,1766760632800,-500.0,0.00013779,2]
[399860264,1766760632810,-500.0,0.00013779,2]
[399860265,1766760632820,-500.0,0.00013779,2]
[399860266,1766760632829,-500.0,0.00013779,2]
[399860267,1766760632839,-500.0,0.00013779,2]
[399860268,1766760632850,-500.0,0.00013779,2]
[399860269,1766760632860,-500.0,0.00013779,2]
[399860270,1766760632870,-500.0,0.00013779,2]
[399860271,1766760632882,-500.0,0.00013779,2]
[399860272,1766760632893,-500.0,0.00013779,2]
[399860273,1766760632905,-519.45016204,0.00013779,2]
[399860274,1766760632915,-500.0,0.00013779,2]
[399860275,1766760632926,-500.0,0.00013779,2]
[399860276,1766760632936,-500.0,0.00013779,2]
[399860277,1766760632946,-500.0,0.00013779,2]
[399860278,1766760632956,-500.0,0.00013779,2]
[399860279,1766760632967,-500.0,0.00013779,2]
[399860280,1766760632977,-500.0,0.00013779,2]
[399860281,1766760632987,-3590.27764409,0.0001378,2]
[399860283,1766760637991,-31955.1264935,0.0001378,2]
[399860284,1766760638004,-642.76071279,0.0001378,2]
[399860285,1766760638070,-159788.86253164,0.0001378,2]
[399860286,1766760638083,-1000.0,0.0001378,2]
[399860287,1766760638096,-2914.6106962,0.0001378,2]
[399860288,1766760638108,-7678.87491265,0.0001378,2]
[399860289,1766760638120,-7233.8050868,0.0001378,2]
[399860290,1766760638132,-2602.67565121,0.0001378,2]
[399860291,1766760638144,-60586.15097523,0.0001378,2]
[399860292,1766760638157,-1134.22,0.0001378,2]
[399860293,1766760638188,-771.65510317,0.0001378,2]
[399860294,1766760638265,-265.03617387,0.0001378,2]
[399860352,1766760640238,-19429.65,0.0001378,2]
[399860353,1766760640298,-10666.38847742,0.0001378,2]
[399860354,1766760640310,-3389.19645253,0.0001378,2]
[399860355,1766760640359,-9120.91694568,0.0001378,2]
[399860356,1766760640371,-2498.89185474,0.0001378,2]
[399860357,1766760640383,-9155.84279121,0.0001378,2]
[399860367,1766760644808,-520.33147514,0.0001378,2]
[399860368,1766760644821,-447.27153168,0.0001378,2]
[399860369,1766760644834,-1012.68459326,0.0001378,2]
[399860370,1766760644847,-540.19568442,0.0001378,2]
[399860371,1766760644920,-49665.31105199,0.0001378,2]
[399860380,1766760646098,-1451.61700086,0.0001378,2]
[399860381,1766760646111,-26463.5,0.0001378,2]
[399860382,1766760646159,-14438.731262,0.0001378,2]
[399860383,1766760646220,-571035.41489792,0.0001378,2]
[399860384,1766760646231,-5497.3212,0.0001379,2]
[399860385,1766760646241,-157.28,0.00013811,2]
[399860386,1766760646251,-1200.0,0.0001387,2]
[399860387,1766760646261,-1999.82472011,0.00013871,2]
[399860388,1766760646271,-1852.42,0.00013871,2]
[399860389,1766760646281,-150.0,0.00013879,2]
[399860390,1766760646292,-200.0,0.00013882,2]
[399860391,1766760646302,-200.0,0.00013882,2]
[399860392,1766760646317,-500.0,0.00013882,2]
[399860393,1766760646327,-500.0,0.00013889,2]
[399860394,1766760646337,-606.57691663,0.00013889,2]
[399860396,1766760646347,-579.81774733,0.00013889,2]
[399860398,1766760646357,-500.0,0.00013889,2]
[399860399,1766760646366,-500.0,0.00013889,2]
[399860400,1766760646376,-500.0,0.00013889,2]
[399860401,1766760646386,-500.0,0.00013889,2]
[399860402,1766760646396,-500.0,0.00013889,2]
[399860403,1766760646406,-500.0,0.00013889,2]
[399860404,1766760646417,-500.0,0.00013889,2]
[399860405,1766760646427,-500.0,0.00013889,2]
[399860406,1766760646437,-500.0,0.00013889,2]
[399860407,1766760646447,-500.0,0.00013889,2]
[399860408,1766760646457,-500.0,0.00013889,2]
[399860409,1766760646467,-175.32,0.00013889,2]
[399860410,1766760646477,-505.06602528,0.00013889,2]
[399860411,1766760646487,-304.48503525,0.00013971,2]
[399860412,1766760646499,-778.33,0.00014053,2]
[399860413,1766760646509,-1000.0,0.00014071,2]
[399860414,1766760646519,-166.66,0.00014124,2]
[399860415,1766760646529,-500.0,0.0001417,2]
[399860416,1766760646542,-500.0,0.0001417,2]
[399860417,1766760646552,-500.0,0.0001417,2]
[399860418,1766760646562,-500.0,0.0001417,2]
[399860419,1766760646572,-500.0,0.0001417,2]
[399860420,1766760646581,-500.0,0.0001417,2]
[399860422,1766760646592,-500.0,0.0001417,2]
[399860423,1766760646602,-500.0,0.0001417,2]
[399860424,1766760646612,-500.0,0.0001417,2]
[399860425,1766760646623,-500.0,0.0001417,2]
[399860426,1766760646632,-500.0,0.0001417,2]
[399860427,1766760646642,-500.0,0.0001417,2]
[399860428,1766760646652,-500.0,0.0001417,2]
[399860429,1766760646666,-500.0,0.0001417,2]
[399860430,1766760646676,-500.0,0.0001417,2]
[399860431,1766760646686,-778.33,0.00014327,2]
[399860432,1766760646696,-98011.85270763,0.000145,2]
[399860433,1766760646706,-9999.99,0.00014504,2]
[399860434,1766760646716,-150.99,0.00014504,2]
[399860435,1766760646726,-10308.54,0.00014504,2]
[399860436,1766760646736,-9999.99,0.00014504,2]
[399860437,1766760646746,-166.66,0.00014517,2]
[399860438,1766760646755,-166.66,0.0001459,2]
[399860439,1766760646765,-778.33,0.00014601,2]
[399860440,1766760646775,-629.7870404,0.0001481,2]
[399860441,1766760646786,-166.66,0.00014822,2]
[399860442,1766760646799,-157.28,0.00014873,2]
[399860443,1766760646809,-778.33,0.00014875,2]
[399860444,1766760646819,-1000.77,0.00014878,2]
[399860445,1766760646829,-420.0,0.00015002,2]
[399860446,1766760646840,-300.0,0.00015002,2]
[399860447,1766760646851,-255.0,0.00015003,2]
[399860448,1766760646861,-166.66,0.00015056,2]
[399860449,1766760646872,-1680.0,0.00015058,2]
[399860450,1766760646883,-151.0,0.00015117,2]
[399860451,1766760646894,-166.66,0.00015128,2]
[399860452,1766760646905,-778.38,0.00015149,2]
[399860453,1766760646916,-1200.0,0.00015197,2]
[399860454,1766760646927,-183.93452706,0.00015358,2]
[399860455,1766760646938,-999.0,0.00015358,3]
[399860456,1766760646948,-969.45,0.00015392,2]
[399860457,1766760646958,-166.66,0.00015434,2]
[399860458,1766760646969,-1945.28,0.00015469,2]
[399860459,1766760646980,-166.66,0.00015522,2]
[399860460,1766760646990,-500.0,0.00015673,2]
[399860461,1766760646999,-500.0,0.00015673,2]
[399860462,1766760647009,-500.0,0.00015673,2]
[399860463,1766760647018,-500.0,0.00015673,2]
[399860464,1766760647028,-500.0,0.00015673,2]
[399860465,1766760647046,-500.0,0.00015673,2]
[399860466,1766760647056,-500.0,0.00015673,2]
[399860467,1766760647066,-500.0,0.00015673,2]
[399860468,1766760647076,-500.0,0.00015673,2]
[399860469,1766760647086,-166.66,0.00015739,2]
[399860470,1766760647095,-500.0,0.00015829,2]
[399860471,1766760647106,-250.0,0.00015898,2]
[399860472,1766760647115,-6343.01,0.00015936,2]
[399860473,1766760647126,-166.66,0.00015989,2]
[399860474,1766760647136,-150.0,0.00015999,2]
[399860475,1766760647146,-500.0,0.00015999,2]
[399860476,1766760647157,-500.0,0.00015999,2]
[399860477,1766760647167,-500.0,0.00015999,2]
[399860478,1766760647177,-500.0,0.00015999,2]
[399860479,1766760647187,-500.0,0.00015999,2]
[399860480,1766760647197,-500.0,0.00015999,2]
[399860481,1766760647207,-646.48024776,0.00015999,2]
[399860482,1766760647217,-551.85860917,0.00015999,2]
[399860483,1766760647227,-166.66,0.00016045,2]
[399860484,1766760647237,-1000.0,0.00016221,2]
[399860485,1766760647248,-1000.0,0.00016221,2]
[399860486,1766760647258,-1000.0,0.00016221,2]
[399860487,1766760647268,-1000.0,0.00016221,2]
[399860488,1766760647278,-574.4149174,0.00016221,2]
[399860489,1766760647287,-1000.0,0.00016221,2]
[399860490,1766760647302,-1000.0,0.00016221,2]
[399860491,1766760647312,-1000.0,0.00016221,2]
[399860492,1766760647322,-1000.0,0.00016221,2]
[399860493,1766760647333,-433.0,0.00016225,2]
[399860494,1766760647343,-500.0,0.00016438,2]
[399860495,1766760647353,-500.0,0.00016438,2]
[399860496,1766760647363,-500.0,0.00016438,2]
[399860497,1766760647373,-500.0,0.00016438,2]
[399860498,1766760647384,-500.0,0.00016438,2]
[399860499,1766760647394,-500.0,0.00016438,2]
[399860500,1766760647408,-500.0,0.00016438,2]
[399860501,1766760647418,-530.0780255,0.00016438,2]
[399860502,1766760647429,-500.0,0.00016438,2]
[399860503,1766760647440,-500.0,0.00016438,2]
[399860504,1766760647450,-500.0,0.00016438,2]
[399860505,1766760647461,-500.0,0.00016438,2]
[399860506,1766760647471,-500.0,0.00016438,2]
[399860507,1766760647764,-500.0,0.00016438,2]
[399860508,1766760647775,-500.0,0.00016438,2]
[399860509,1766760647785,-500.0,0.00016438,2]
[399860510,1766760647800,-500.0,0.00016438,2]
[399860511,1766760647809,-500.0,0.00016438,2]
[399860512,1766760647819,-500.0,0.00016438,2]
[399860513,1766760647831,-500.0,0.00016438,2]
[399860514,1766760647841,-500.0,0.00016438,2]
[399860515,1766760647851,-500.0,0.00016438,2]
[399860516,1766760647862,-500.0,0.00016438,2]
[399860517,1766760647871,-500.0,0.00016438,2]
[399860518,1766760647885,-500.0,0.00016438,2]
[399860519,1766760647895,-500.0,0.00016438,2]
[399860520,1766760647905,-500.0,0.00016438,2]
[399860521,1766760647915,-500.0,0.00016438,2]
[399860522,1766760647926,-500.0,0.00016438,2]
[399860523,1766760647936,-500.0,0.00016438,2]
[399860524,1766760647947,-500.0,0.00016438,2]
[399860525,1766760647957,-500.0,0.00016438,2]
[399860526,1766760647968,-500.0,0.00016438,2]
[399860527,1766760647978,-223.0,0.0001644,2]
[399860528,1766760647988,-166.66,0.00016455,2]
[399860529,1766760647998,-720.0,0.00016564,2]
[399860530,1766760648008,-164.31,0.00016712,2]
[399860531,1766760648018,-1000.77,0.00016737,2]
[399860532,1766760648027,-1500.0,0.00016768,2]
[399860533,1766760648037,-1500.0,0.00016768,2]
[399860534,1766760648050,-1500.0,0.00016768,2]
[399860535,1766760648059,-203.9629744,0.0001682,2]
[399860536,1766760648070,-13575.89402439,0.00016881,2]
[399860537,1766760648079,-500.0,0.000169,2]
[399860538,1766760648089,-500.0,0.000169,2]
[399860539,1766760648099,-500.0,0.000169,2]
[399860540,1766760648109,-500.0,0.000169,2]
[399860541,1766760648118,-500.0,0.000169,2]
[399860542,1766760648128,-500.0,0.000169,2]
[399860543,1766760648138,-500.0,0.000169,2]
[399860544,1766760648147,-500.0,0.000169,2]
[399860545,1766760648157,-500.0,0.000169,2]
[399860546,1766760648167,-500.0,0.000169,2]
[399860547,1766760648176,-500.0,0.000169,2]
[399860548,1766760648186,-500.0,0.000169,2]
[399860549,1766760648196,-500.0,0.000169,2]
[399860550,1766760648205,-500.0,0.000169,2]
[399860551,1766760648215,-500.0,0.000169,2]
[399860552,1766760648225,-500.0,0.000169,2]
[399860553,1766760648235,-500.0,0.000169,2]
[399860554,1766760648246,-500.0,0.000169,2]
[399860555,1766760648256,-500.0,0.000169,2]
[399860556,1766760648267,-500.0,0.000169,2]
[399860557,1766760648276,-500.0,0.000169,2]
[399860558,1766760648286,-500.0,0.000169,2]
[399860559,1766760648299,-500.0,0.000169,2]
[399860560,1766760648310,-500.0,0.000169,2]
[399860561,1766760648319,-500.0,0.000169,2]
[399860562,1766760648329,-430.90391782,0.000169,2]
[399860563,1766760648339,-500.0,0.00016973,2]
[399860564,1766760648349,-511.82107275,0.00016973,2]
[399860565,1766760648359,-158.75,0.00016973,2]
[399860566,1766760648370,-163.47849716,0.00016973,2]
[399860567,1766760648380,-500.0,0.00016973,2]
[399860568,1766760648390,-1359.3242145,0.00016985,2]
[399860569,1766760648400,-129068.52767484,0.00016985,2]
[399860620,1766761802647,-247.0,0.00013535,2]
[399860625,1766761832105,-339.21760029,0.0001348,2]
[399860626,1766761832117,-16.04,0.00013535,2]
[399860627,1766761832128,-261.0,0.00013535,2]
[399860628,1766761832140,-250.0,0.00013557,2]
[399860629,1766761832150,-300.0,0.00013579,2]
[399860630,1766761832162,-1200.0,0.00013579,2]
[399860631,1766761832173,-4513.8920268,0.0001358,2]
[399860632,1766761832186,-1217.29571367,0.0001358,2]
[399860633,1766761832199,-290.0,0.0001358,2]
[399860634,1766761832217,-4356.33608948,0.0001358,2]
[399860635,1766761832230,-483.19138958,0.0001358,2]
[399860636,1766761832240,-214.51715099,0.0001358,2]
[399860637,1766761832251,-250.0,0.00013584,2]
[399860638,1766761832262,-89.44577193,0.00013639,2]
[399860639,1766761832275,-211.1111601,0.00013639,2]
[399860640,1766761832290,-150.0,0.00013677,2]
[399860641,1766761832301,-159.13483171,0.00013678,2]
[399860642,1766761832312,-229.47321302,0.00013678,2]
[399860643,1766761832323,-500.0,0.00013678,2]
[399860644,1766761832334,-500.0,0.00013678,2]
[399860645,1766761832345,-500.0,0.00013678,2]
[399860646,1766761832356,-500.0,0.00013678,2]
[399860647,1766761832370,-500.0,0.00013678,2]
[399860648,1766761832386,-500.0,0.00013678,2]
[399860649,1766761832397,-500.0,0.00013678,2]
[399860651,1766761832407,-500.0,0.00013678,2]
[399860653,1766761832417,-334.85127547,0.00013678,2]
[399860656,1766761832430,-165.14872453,0.00013678,2]
[399860658,1766761832441,-500.0,0.00013678,2]
[399860659,1766761832451,-500.0,0.00013678,2]
[399860661,1766761832461,-373.69402537,0.00013678,2]
[399860665,1766761832485,-126.30597463,0.00013678,2]
[399860668,1766761832497,-500.0,0.00013678,2]
[399860670,1766761832507,-500.0,0.00013678,2]
[399860672,1766761832521,-500.0,0.00013678,2]
[399860674,1766761832531,-500.0,0.00013678,2]
[399860676,1766761832547,-500.0,0.00013678,2]
[399860678,1766761832557,-499.94071397,0.00013678,2]
[399860680,1766761832567,-500.0,0.00013678,2]
[399860682,1766761832577,-500.0,0.00013678,2]
[399860684,1766761832587,-500.0,0.00013678,2]
[399860686,1766761832600,-500.0,0.00013678,2]
[399860687,1766761832609,-500.0,0.00013678,2]
[399860690,1766761832620,-500.0,0.00013678,2]
[399860691,1766761832630,-500.0,0.00013678,2]
[399860693,1766761832640,-500.0,0.00013678,2]
[399860695,1766761832651,-500.0,0.00013678,2]
[399860697,1766761832661,-500.0,0.00013678,2]
[399860699,1766761832672,-500.0,0.00013678,2]
[399860701,1766761832682,-500.0,0.00013678,2]
[399860703,1766761832692,-500.0,0.00013678,2]
[399860705,1766761832702,-500.0,0.00013678,2]
[399860707,1766761832713,-500.0,0.00013678,2]
[399860709,1766761832723,-500.0,0.00013678,2]
[399860711,1766761832733,-230.20535738,0.00013678,2]
[399860713,1766761832743,-500.0,0.00013678,2]
[399860715,1766761832754,-500.0,0.00013678,2]
[399860717,1766761832764,-500.0,0.00013678,2]
[399860719,1766761832774,-500.0,0.00013678,2]
[399860721,1766761832790,-500.0,0.00013678,2]
[399860723,1766761832801,-500.0,0.00013678,2]
[399860725,1766761832811,-150.0,0.00013678,2]
[399860727,1766761832821,-14101.11508708,0.00013679,2]
[399860729,1766761832834,-222544.55868643,0.00013679,2]
[399860736,1766761838807,-87099.99999999,0.00013679,2]
[399860737,1766761838820,-292.56,0.00013679,2]
[399860738,1766761838836,-10618.21986627,0.00013679,2]
[399860739,1766761838849,-7967.72470494,0.00013679,2]
[399860740,1766761838864,-15120.03553679,0.00013679,2]
[399860741,1766761838877,-16785.15192604,0.00013679,2]
[399860742,1766761838890,-2884.10415433,0.00013679,2]
[399860743,1766761838902,-6003.3091171,0.00013679,2]
[399860744,1766761838915,-500.0,0.00013679,2]
[399860745,1766761838940,-28120.22882031,0.00013679,2]
[399860746,1766761838952,-4176.20288896,0.00013679,2]
[399860747,1766761838964,-6482.65886912,0.00013679,2]
[399860748,1766761838977,-3803.7703143,0.00013679,2]
[399860749,1766761838990,-1155.36408997,0.00013679,2]
[399860750,1766761839006,-108466.68783258,0.00013679,2]
[399860751,1766761839019,-261.91719068,0.00013679,2]
[399860752,1766761839031,-5656.64480894,0.00013679,2]
[399860753,1766761839046,-1807.19031194,0.00013679,2]
[399860754,1766761839058,-664.92819122,0.00013679,2]
[399860755,1766761839071,-2578.60560507,0.00013679,2]
[399860756,1766761839084,-11014.78137961,0.00013679,2]
[399860766,1766761840294,-1264.23671839,0.00013679,2]
[399860767,1766761840307,-476.36005889,0.00013679,2]
[399860768,1766761840319,-1105.392798,0.00013679,2]
[399860769,1766761840432,-1655.35490122,0.00013679,2]
[399860770,1766761840446,-4337.20429625,0.00013679,2]
[399860771,1766761840458,-14287.24589999,0.00013679,2]
[399860772,1766761840470,-3571.52766994,0.00013679,2]
[399860773,1766761840482,-5768.68478496,0.00013679,2]
[399860774,1766761840494,-6725.39,0.00013679,2]
[399860775,1766761840506,-919.39818052,0.00013679,2]
[399860776,1766761840519,-3045.0,0.00013679,2]
[399860777,1766761840576,-1736.33370989,0.00013679,2]
[399860801,1766761846371,-4609.07870322,0.00013679,2]
[399860802,1766761846384,-5848.0,0.00013679,2]
[399860803,1766761846395,-17482.5,0.00013679,2]
[399860804,1766761846621,-2612.77264086,0.00013679,2]
[399860809,1766761847052,-366449.7602562,0.00013679,2]
[399860810,1766761847062,-2500.0,0.0001368,2]
[399860811,1766761847072,-308.50402127,0.0001369,2]
[399860813,1766761847082,-1799.84224809,0.0001369,2]
[399860814,1766761847092,-543.06,0.00013699,2]
[399860816,1766761847102,-1000.0,0.0001379,2]
[399860817,1766761847111,-23150.1492,0.0001379,2]
[399860818,1766761847121,-500.0,0.00014706,2]
[399860819,1766761847131,-255.0,0.00014799,2]
[399860820,1766761847141,-1000.0,0.00014806,2]
[399860821,1766761847151,-300.0,0.00014883,2]
[399860822,1766761847162,-250.0,0.00014889,2]
[399860823,1766761847172,-3870.98,0.00014904,2]
[399860824,1766761847182,-526.69933951,0.00014969,2]
[399860825,1766761847192,-200.0,0.00014995,2]
[399860826,1766761847203,-200.0,0.00015184,2]
[399860827,1766761847213,-9999.99,0.0001531,2]
[399860828,1766761847223,-375.15,0.0001531,2]
[399860829,1766761847233,-151.0,0.0001533,2]
[399860830,1766761847245,-500.0,0.00015673,2]
[399860831,1766761847255,-500.0,0.00015673,2]
[399860832,1766761847265,-500.0,0.00015673,2]
[399860833,1766761847276,-151.0,0.00015887,2]
[399860834,1766761847286,-7386.77,0.00015926,2]
[399860835,1766761847297,-16070.22,0.00015934,2]
[399860836,1766761847307,-196.0,0.00016016,2]
[399860837,1766761847318,-422.38039006,0.00016064,2]
[399860838,1766761847329,-309.46072033,0.00016083,2]
[399860839,1766761847338,-265.29552727,0.00016221,2]
[399860840,1766761847348,-1000.0,0.00016221,2]
[399860841,1766761847358,-1000.0,0.00016221,2]
[399860842,1766761847368,-679.61,0.00016263,2]
[399860843,1766761847378,-270.77577734,0.00016296,5]
[399860844,1766761847387,-500.0,0.00016438,2]
[399860845,1766761847397,-500.0,0.00016438,2]
[399860846,1766761847409,-450.71879319,0.00016438,2]
[399860847,1766761847419,-500.0,0.00016438,2]
[399860848,1766761847429,-500.0,0.00016438,2]
[399860849,1766761847439,-500.0,0.00016438,2]
[399860850,1766761847449,-500.0,0.00016438,2]
[399860851,1766761847459,-500.0,0.00016438,2]
[399860852,1766761847468,-500.0,0.00016438,2]
[399860853,1766761847479,-1000.0,0.00016657,2]
[399860854,1766761847490,-1500.0,0.00016768,2]
[399860855,1766761847500,-413.39475996,0.00016768,2]
[399860856,1766761847509,-10860.71521951,0.00016786,2]
[399860857,1766761847747,-1799.84224806,0.00016884,2]
[399860858,1766761847757,-500.0,0.00016932,2]
[399860859,1766761847767,-500.0,0.00016973,2]
[399860860,1766761847777,-11412.05176956,0.00016985,2]
[399860861,1766761847787,-3775.0154168,0.00016985,2]
[399860862,1766761847800,-2461.1571103,0.00016985,2]
[399860863,1766761847810,-151.0,0.00016985,2]
[399860864,1766761847820,-151.0,0.00016985,2]
[399860865,1766761847829,-51754.83402352,0.00017,2]
[399860866,1766761847845,-338447.8439979,0.00017,2]
[399860867,1766761847861,-50953.57335124,0.00017,2]
[399860868,1766761847873,-5755.6156927,0.00017,2]
[399860869,1766761847904,-947.80948724,0.00017,2]